fUST/lending_fUST_20240820
["ID","MTS","AMOUNT","RATE_DAILY","PERIOD"]
[335378746,1724167854902,-1270.65,0.00022465,2]
[335378747,1724167854912,-477.6,0.00022481,2]
[335378748,1724167854922,-151.0,0.00022481,2]
[335378749,1724167854932,-302.12393124,0.0002266,2]
[335378750,1724167854942,-500.0,0.00022668,2]
[335378751,1724167854952,-61833.19,0.000227,14]
[335378752,1724167854963,-502.91098369,0.00022739,2]
[335378753,1724167854973,-1270.85635871,0.00022739,2]
[335378754,1724167854984,-4755.17,0.000228,14]
[335378755,1724167854995,-302.12393124,0.0002288,2]
[335378756,1724167855006,-500.0,0.00022942,2]
[335378757,1724167855017,-1000.0,0.00023,23]
[335378758,1724167855027,-1472.24,0.000231,31]
[335378759,1724167855038,-1472.24,0.000231,31]
[335378760,1724167855048,-1472.24,0.000231,31]
[335378761,1724167855059,-1472.24,0.000231,31]
[335378762,1724167855070,-1472.24,0.000231,31]
[335378763,1724167855081,-1472.24,0.000231,31]
[335378764,1724167855093,-1472.24,0.000231,31]
[335378765,1724167855105,-1472.24,0.000231,31]
[335378766,1724167855117,-1472.24,0.000231,31]
[335378767,1724167855127,-1472.24,0.000231,31]
[335378768,1724167855138,-1472.24,0.000231,31]
[335378769,1724167855148,-1472.24,0.000231,31]
[335378770,1724167855159,-1472.24,0.000231,31]
[335378771,1724167855170,-1472.24,0.000231,31]
[335378772,1724167855180,-1472.24,0.000231,31]
[335378773,1724167855191,-1472.24,0.000231,31]
[335378774,1724167855202,-1472.24,0.000231,31]
[335378775,1724167855214,-1472.24,0.000231,31]
[335378776,1724167855223,-1472.24,0.000231,31]
[335378777,1724167855233,-1472.24,0.000231,31]
[335378778,1724167855245,-1472.24,0.000231,31]
[335378779,1724167855255,-1472.24,0.000231,31]
[335378780,1724167855265,-1472.24,0.000231,31]
[335378781,1724167855275,-1472.24,0.000231,31]
[335378782,1724167855287,-453.18589685,0.000231,4]
[335378783,1724167855298,-500.0,0.00023216,2]
[335378784,1724167855309,-453.18589685,0.0002332,4]
[335378785,1724167855319,-500.0,0.00023361,2]
[335378786,1724167855329,-500.0,0.0002349,2]
[335378787,1724167855340,-156.25199086,0.0002354,4]
[335378788,1724167855353,-150.112236,0.000237,3]
[335378789,1724167855364,-500.0,0.00023764,2]
[335378790,1724167855374,-153.0,0.00023791,2]
[335378791,1724167855385,-150.112233,0.00024,2]
[335378792,1724167855395,-1120.75,0.00024,14]
[335378793,1724167855406,-83367.5135904,0.00024,60]
[335378794,1724167855415,-477.6,0.00024034,2]
[335378795,1724167855425,-151.0,0.00024034,2]
[335378796,1724167855436,-500.0,0.00024038,2]
[335378797,1724167855447,-1200.0,0.00024073,2]
[335378798,1724167855459,-3050.53754688,0.00024139,2]
[335378799,1724167855469,-1472.24,0.000242,31]
[335378800,1724167855480,-1472.24,0.000242,31]
[335378801,1724167855491,-1472.24,0.000242,31]
[335378802,1724167855503,-1472.24,0.000242,31]
[335378803,1724167855515,-1472.24,0.000242,31]
[335378804,1724167855526,-1472.24,0.000242,31]
[335378805,1724167855538,-1472.24,0.000242,31]
[335378806,1724167855548,-1472.24,0.000242,31]
[335378807,1724167855558,-1472.24,0.000242,31]
[335378808,1724167855568,-1472.24,0.000242,31]
[335378809,1724167855578,-1472.24,0.000242,31]
[335378810,1724167855588,-1472.24,0.000242,31]
[335378811,1724167855598,-1472.24,0.000242,31]
[335378812,1724167855608,-1472.24,0.000242,31]
[335378813,1724167855623,-1472.24,0.000242,31]
[335378814,1724167855633,-1472.24,0.000242,31]
[335378815,1724167855644,-1472.24,0.000242,31]
[335378816,1724167855654,-1472.24,0.000242,31]
[335378817,1724167855669,-1472.24,0.000242,31]
[335378818,1724167855679,-1472.24,0.000242,31]
[335378819,1724167855691,-1472.24,0.000242,31]
[335378820,1724167855701,-1472.24,0.000242,31]
[335378821,1724167855712,-1472.24,0.000242,31]
[335378822,1724167855722,-1472.24,0.000242,31]
[335378823,1724167855734,-500.0,0.00024312,2]
[335378824,1724167855746,-35733.75542573,0.00024349,2]
[335378825,1724167855756,-5344.47234824,0.00024502,2]
[335378826,1724167855766,-500.0,0.00024529,2]
[335378827,1724167855779,-500.0,0.00024586,2]
[335378828,1724167855790,-10003.90066576,0.00024637,2]
[335378829,1724167855800,-10003.90066576,0.00024637,2]
[335378830,1724167855811,-1830.04600683,0.00024647,2]
[335378831,1724167855822,-500.0,0.00024658,2]
[335378832,1724167855833,-380.0,0.00024658,2]
[335378833,1724167855844,-200.0,0.00024658,2]
[335378834,1724167855854,-200.0,0.00024658,15]
[335378835,1724167855865,-1000.0,0.00024678,2]
[335378836,1724167855877,-555.66405176,0.00024688,2]
[335378837,1724167855887,-154.54409492,0.00024688,2]
[335378838,1724167855897,-154.54409492,0.00024688,2]
[335378839,1724167855906,-435.0,0.00024688,2]
[335378840,1724167855918,-154.54409492,0.0002469,2]
[335378841,1724167855928,-154.54409492,0.0002469,2]
[335378842,1724167855939,-1111.07542891,0.0002469,2]
[335378843,1724167855950,-1502.22260629,0.00024728,2]
[335378844,1724167855961,-217.64702912,0.00024728,2]
[335378845,1724167855972,-271.56079623,0.00024756,2]
[335378846,1724167855983,-271.56079623,0.00024756,2]
[335378847,1724167855994,-174.63720972,0.00024803,2]
[335378848,1724167856004,-154.71377951,0.00024803,2]
[335378849,1724167856015,-532.95903417,0.00024803,2]
[335378850,1724167856026,-159.23515159,0.00024803,2]
[335378851,1724167856038,-154.71377951,0.00024814,2]
[335378852,1724167856047,-154.54409492,0.00024818,2]
[335378853,1724167856058,-500.0,0.0002486,2]
[335378854,1724167856070,-478.67831481,0.00024999,2]
[335378855,1724167856080,-277.92028119,0.00025,30]
[335378856,1724167856090,-154.66746495,0.00025,2]
[335378857,1724167856102,-308.19214429,0.00025,2]
[335378858,1724167856113,-1000.0,0.00025,25]
[335378859,1724167856127,-5657.61185921,0.00025,120]
[335378860,1724167856138,-72400.28960644,0.00025,2]
[335378861,1724167856150,-503.53988539,0.00025,2]
[335378862,1724167856160,-500.0,0.00025134,2]
[335378863,1724167856253,-607.41450123,0.0002525,2]
[335378864,1724167856263,-151.0,0.000254,7]
[335378865,1724167856273,-151.0,0.000254,7]
[335378866,1724167856283,-1472.24,0.000254,31]
[335378867,1724167856294,-1472.24,0.000254,31]
[335378868,1724167856304,-1472.24,0.000254,31]
[335378869,1724167856313,-1472.24,0.000254,31]
[335378870,1724167856323,-1472.24,0.000254,31]
[335378871,1724167856332,-1472.24,0.000254,31]
[335378872,1724167856342,-1472.24,0.000254,31]
[335378873,1724167856354,-1472.24,0.000254,31]
[335378874,1724167856363,-1472.24,0.000254,31]
[335378875,1724167856375,-1472.24,0.000254,31]
[335378876,1724167856385,-1472.24,0.000254,31]
[335378877,1724167856395,-1472.24,0.000254,31]
[335378878,1724167856404,-1472.24,0.000254,31]
[335378879,1724167856414,-1472.24,0.000254,31]
[335378880,1724167856424,-1472.24,0.000254,31]
[335378881,1724167856433,-1472.24,0.000254,31]
[335378882,1724167856443,-1472.24,0.000254,31]
[335378883,1724167856454,-1472.24,0.000254,31]
[335378884,1724167856463,-1472.24,0.000254,31]
[335378885,1724167856476,-239.498249,0.000254,7]
[335378886,1724167856486,-1472.24,0.000254,31]
[335378887,1724167856498,-1472.24,0.000254,31]
[335378888,1724167856508,-1472.24,0.000254,31]
[335378889,1724167856519,-1472.24,0.000254,31]
[335378890,1724167856529,-1472.24,0.000254,31]
[335378891,1724167856539,-239.498249,0.000254,7]
[335378892,1724167856550,-5903.97048,0.000254,7]
[335378893,1724167856561,-426.90559456,0.00025408,2]
[335378894,1724167856572,-477.6,0.00025586,2]
[335378895,1724167856582,-151.0,0.00025586,2]
[335378896,1724167856594,-279.28,0.000256,7]
[335378897,1724167856604,-2500.0,0.00026,2]
[335378898,1724167856614,-232.11968218,0.00026,120]
[335378899,1724167856627,-500.0,0.00026142,2]
[335378900,1724167856637,-150.112233,0.000262,7]
[335378901,1724167856647,-155.12080504,0.00026256,2]
[335378902,1724167856657,-7458.94652043,0.0002649,2]
[335378903,1724167856671,-1472.24,0.000266,31]
[335378904,1724167856681,-1472.24,0.000266,31]
[335378905,1724167856691,-1472.24,0.000266,31]
[335378906,1724167856702,-1472.24,0.000266,31]
[335378907,1724167856712,-1472.24,0.000266,31]
[335378908,1724167856722,-1472.24,0.000266,31]
[335378909,1724167856732,-1472.24,0.000266,31]
[335378910,1724167856745,-1472.24,0.000266,31]
[335378911,1724167856755,-1472.24,0.000266,31]
[335378912,1724167856765,-1472.24,0.000266,31]
[335378913,1724167856774,-1472.24,0.000266,31]
[335378914,1724167856784,-5706.05465401,0.000268,2]
[335378915,1724167856794,-1000.0,0.00027,27]
[335378916,1724167856804,-799.49580145,0.00027042,2]
[335378917,1724167856813,-477.6,0.00027138,2]
[335378918,1724167856823,-151.0,0.00027138,2]
[335378919,1724167856833,-545.912931,0.00027167,2]
[335378920,1724167856844,-61833.19,0.000272,14]
[335378921,1724167856854,-1000.0,0.00027397,2]
[335378922,1724167856864,-1000.0,0.00027397,2]
[335378923,1724167856875,-1000.0,0.00027397,2]
[335378924,1724167856884,-1000.0,0.00027397,2]
[335378925,1724167856893,-1008.45125076,0.00027397,2]
[335378926,1724167856903,-500.0,0.00027397,2]
[335378927,1724167856912,-500.0,0.00027397,2]
[335378928,1724167856922,-234.02837115,0.00027397,2]
[335378929,1724167856932,-280.97271542,0.00027473,4]
[335378930,1724167856943,-5344.47234824,0.00027968,2]
[335378931,1724167856953,-224.399999,0.00028,2]
[335378932,1724167856962,-4755.17,0.00028,14]
[335378933,1724167856972,-4900.0,0.00028,2]
[335378934,1724167856982,-150.112233,0.000284,8]
[335378935,1724167856991,-1120.75,0.000284,14]
[335378936,1724167857002,-477.6,0.00028691,2]
[335378937,1724167857011,-151.0,0.00028691,2]
[335378938,1724167857020,-300.0,0.00029,2]
[335378939,1724167857030,-1000.0,0.00029,29]
[335378940,1724167857042,-178.69269968,0.0003,5]
[335378941,1724167857052,-630.0,0.0003,120]
[335378942,1724167857063,-172.0,0.0003,2]
[335378943,1724167857072,-300.0,0.0003,2]
[335378944,1724167857083,-151.0,0.0003,120]
[335378945,1724167857094,-172.0,0.0003,2]
[335378946,1724167857104,-172.0,0.0003,2]
[335378947,1724167857117,-261.0,0.0003,2]
[335378948,1724167857127,-1169.0,0.0003,30]
[335378949,1724167857137,-477.6,0.00030243,2]
[335378950,1724167857148,-151.0,0.00030243,2]
[335378951,1724167857157,-150.112233,0.000306,10]
[335378952,1724167857167,-279.28,0.000306,7]
[335378953,1724167857179,-300.0,0.00031,4]
[335378954,1724167857189,-1000.0,0.00031,31]
[335378955,1724167857200,-160.0,0.00031058,3]
[335378956,1724167857210,-155.12080504,0.00031256,2]
[335378957,1724167857221,-5344.47234824,0.00031434,2]
[335378958,1724167857232,-477.6,0.00031795,3]
[335378959,1724167857244,-151.0,0.00031795,3]
[335378960,1724167857254,-300.0,0.00032,5]
[335378961,1724167857266,-9290.74736336,0.00032,2]
[335378962,1724167857276,-61833.19,0.000323,14]
[335378963,1724167857285,-151.0,0.000323,7]
[335378964,1724167857297,-151.0,0.000323,7]
[335378965,1724167857308,-167.290911,0.000323,7]
[335378966,1724167857318,-151.0,0.000323,7]
[335378967,1724167857328,-151.0,0.000323,7]
[335378968,1724167857338,-151.0,0.000323,7]
[335378969,1724167857349,-150.112233,0.000328,9]
[335378970,1724167857360,-300.0,0.00033,7]
[335378971,1724167857372,-11510.093154,0.00033,120]
[335378972,1724167857381,-165.0,0.00033,2]
[335378973,1724167857392,-1000.0,0.00033,33]
[335378974,1724167857402,-261.0,0.00033,2]
[335378975,1724167857411,-261.0,0.00033,2]
[335378976,1724167857421,-176.8102754,0.00033,120]
[335378977,1724167857430,-153.0,0.00033192,2]
[335378978,1724167857439,-153.0,0.00033194,2]
[335378979,1724167857449,-153.0,0.00033219,2]
[335378980,1724167857458,-153.0,0.0003322,2]
[335378981,1724167857468,-153.0,0.00033245,2]
[335378982,1724167857478,-153.0,0.00033247,2]
[335378983,1724167857488,-153.0,0.00033271,2]
[335378984,1724167857498,-477.6,0.00033348,3]
[335378985,1724167857508,-151.0,0.00033348,3]
[335378986,1724167857518,-207.6000865,0.0003337,2]
[335378987,1724167857528,-306.0,0.0003337,2]
[335378988,1724167857538,-207.6000865,0.0003337,2]
[335378989,1724167857548,-207.6000865,0.0003337,2]
[335378990,1724167857558,-207.6000865,0.0003337,2]
[335378991,1724167857570,-207.6000865,0.0003337,2]
[335378992,1724167857580,-414.8881466,0.0003337,2]
[335378993,1724167857590,-545.912931,0.00033626,2]
[335378994,1724167857600,-300.0,0.00034,9]
[335378995,1724167857610,-4755.17,0.00034,14]
[335378996,1724167857624,-1932.186094,0.00034,17]
[335378997,1724167857633,-153.0,0.00034192,2]
[335378998,1724167857642,-153.0,0.00034192,2]
[335378999,1724167857651,-153.0,0.00034192,2]
[335379000,1724167857665,-153.0,0.00034192,2]
[335379001,1724167857674,-153.0,0.00034192,2]
[335379002,1724167857684,-153.0,0.00034192,2]
[335379003,1724167857695,-153.0,0.00034192,2]
[335379004,1724167857707,-153.0,0.00034192,2]
[335379005,1724167857717,-153.0,0.00034192,2]
[335379006,1724167857727,-153.0,0.00034192,2]
[335379007,1724167857738,-153.0,0.00034192,2]
[335379008,1724167857749,-153.0,0.00034192,2]
[335379009,1724167857759,-153.0,0.00034192,2]
[335379010,1724167857769,-153.0,0.00034192,2]
[335379011,1724167857778,-153.0,0.00034192,2]
[335379012,1724167857788,-153.0,0.00034192,2]
[335379013,1724167857797,-153.0,0.00034192,2]
[335379014,1724167857808,-153.0,0.00034192,2]
[335379015,1724167857818,-153.0,0.00034192,2]
[335379016,1724167857828,-153.0,0.00034192,2]
[335379017,1724167857839,-1120.75,0.000342,14]
[335379018,1724167857850,-238.650032,0.00034247,2]
[335379019,1724167857861,-478.77,0.000343,120]
[335379020,1724167857874,-478.771,0.000343,120]
[335379021,1724167857884,-478.771,0.000343,120]
[335379022,1724167857894,-478.771,0.000343,120]
[335379023,1724167857904,-478.771,0.000343,120]
[335379024,1724167857914,-1000.0,0.000345,17]
[335379025,1724167857926,-175.31719574,0.000345,2]
[335379026,1724167857935,-165.0,0.00034521,2]
[335379027,1724167857946,-178.569221,0.00034703,2]
[335379028,1724167857956,-1000.0,0.000348,3]
[335379029,1724167857965,-673.07858906,0.00034899,2]
[335379030,1724167857975,-3630.0,0.000349,4]
[335379031,1724167857984,-477.6,0.000349,4]
[335379032,1724167857993,-151.0,0.000349,4]
[335379033,1724167858003,-27483.3154823,0.000349,2]
[335379034,1724167858012,-5344.47234824,0.000349,2]
[335379035,1724167858021,-151.31843755,0.0003493,2]
[335379036,1724167858030,-160.0,0.0003495,4]
[335379037,1724167858040,-160.0,0.0003495,5]
[335379038,1724167858049,-1000.0,0.0003499,3]
[335379039,1724167858059,-20641.85637124,0.00034999,3]
[335379040,1724167858068,-2853.63,0.00034999,2]
[335379041,1724167858077,-2853.63,0.00034999,2]
[335379042,1724167858161,-2853.63,0.00034999,2]
[335379043,1724167858170,-2853.63,0.00034999,2]
[335379044,1724167858179,-2853.63,0.00034999,2]
[335379045,1724167858189,-2853.63,0.00034999,2]
[335379046,1724167858198,-2853.63,0.00034999,2]
[335379047,1724167858208,-2853.63,0.00034999,2]
[335379048,1724167858219,-2853.63,0.00034999,2]
[335379049,1724167858229,-2853.63,0.00034999,2]
[335379050,1724167858239,-156348.28881234,0.00035,30]
[335379051,1724167858500,-154.54409492,0.00012782,2]
[335379052,1724167858513,-105.80805596,0.00013697,2]
[335379053,1724167858527,-756.73135015,0.00013697,2]
[335379054,1724167858539,-500.0,0.00016438,2]
[335379055,1724167858550,-420.99149762,0.00016438,2]
[335379056,1724167858560,-501.90928877,0.00016438,2]
[335379057,1724167858570,-500.0,0.00016438,2]
[335379058,1724167858581,-279.57087627,0.00016438,2]
[335379059,1724167858592,-500.0,0.00016438,2]
[335379060,1724167858603,-500.0,0.00016712,2]
[335379061,1724167858614,-575.35760915,0.00016712,2]
[335379062,1724167858628,-503.96616619,0.00016986,2]
[335379063,1724167858640,-500.0,0.00019726,2]
[335379064,1724167858650,-500.0,0.0002,2]
[335379065,1724167858661,-500.0,0.00020273,2]
[335379066,1724167858675,-500.0,0.00020547,2]
[335379067,1724167858686,-500.0,0.00020821,2]
[335379068,1724167858696,-501.97662511,0.00021095,2]
[335379069,1724167858707,-237.35486148,0.00024945,2]
[335379070,1724167858718,-757035.00326641,0.00035,30]
[335379071,1724167858732,-1341.7160584,0.00035,30]
[335379072,1724167858854,-665.53459983,0.00013698,2]
[335379073,1724167858864,-503.60765118,0.00016438,2]
[335379074,1724167858878,-500.0,0.00016438,2]
[335379075,1724167858889,-500.0,0.00016438,2]
[335379076,1724167858899,-500.0,0.00016712,2]
[335379077,1724167858910,-500.0,0.00016986,2]
[335379078,1724167858921,-616.17364625,0.00018333,2]
[335379079,1724167858931,-1502.22260629,0.0002469,2]
[335379080,1724167858942,-5903.97048,0.000254,7]
[335379081,1724167858952,-603.0,0.000273,2]
[335379082,1724167858963,-153.0,0.00033168,2]
[335379083,1724167858972,-38973.2502235,0.00035,30]
[335379084,1724167858984,-590.4,0.00035,30]
[335379085,1724167858996,-555.16267515,0.00035,30]
[335379086,1724167859007,-6833.09949836,0.00035,30]
[335379087,1724167859023,-529268.74864997,0.00035,30]
[335379088,1724167859131,-1500.0,0.00012516,2]
[335379089,1724167859142,-544.06785329,0.00013697,2]
[335379090,1724167859153,-500.0,0.00016438,2]
[335379091,1724167859163,-504.52095337,0.00016438,2]
[335379092,1724167859172,-506.87953148,0.00016438,2]
[335379093,1724167859181,-500.0,0.00016438,2]
[335379094,1724167859190,-500.30739755,0.00016438,2]
[335379095,1724167859200,-500.0,0.00016712,2]
[335379096,1724167859209,-500.0,0.00016712,2]
[335379097,1724167859218,-500.0,0.00016712,2]
[335379098,1724167859227,-198098.56287436,0.00035,30]
[335379100,1724168130634,-16137.14955958,8.521e-05,2]
[335379101,1724168130657,-8845.25511796,8.521e-05,2]
[335379102,1724168130680,-7014.13255051,8.521e-05,2]
[335379103,1724168130705,-11558.08493871,8.521e-05,2]
[335379104,1724168130730,-2712.87069354,8.521e-05,2]
[335379105,1724168130757,-1613.61724275,8.532e-05,2]
[335379106,1724168130783,-1850.58035834,8.532e-05,3]
[335379107,1724168130807,-905.54893014,8.761e-05,2]
[335379108,1724168130834,-898.81779354,8.761e-05,2]
[335379109,1724168130858,-569.6147727,8.761e-05,2]
[335379110,1724168130883,-728.8710597,8.761e-05,2]
[335379111,1724168130908,-155.007059,8.761e-05,2]
[335379112,1724168130934,-601.94985179,8.761e-05,2]
[335379113,1724168130959,-281.7010432,8.769e-05,2]
[335379114,1724168130983,-320.30409158,8.769e-05,2]
[335379115,1724168131009,-157.11235205,8.769e-05,2]
[335379116,1724168131035,-475.37962421,8.769e-05,2]
[335379117,1724168131059,-223.54518659,8.769e-05,2]
[335379118,1724168131082,-404.47284307,8.769e-05,2]
[335379119,1724168131106,-154.55950541,8.793e-05,2]
[335379145,1724168931134,521.35824671,8.019e-05,2]
[335379146,1724168950575,187.57857498,8.019e-05,2]
[335379147,1724168951866,155.26942505,8.019e-05,2]
[335379152,1724168989355,156.36845768,8.019e-05,2]
[335379275,1724169034681,654.42759972,7.954e-05,2]
[335379311,1724169038453,-300.0,8.52e-05,2]
[335379313,1724169038464,-3583.82093431,8.521e-05,2]
[335379324,1724169038563,-5261.43418365,8.521e-05,2]
[335379326,1724169038574,-7014.13255051,8.521e-05,2]
[335379329,1724169038583,-320.30409158,8.521e-05,2]
[335379331,1724169038596,-223.54518659,8.793e-05,2]
[335379333,1724169038608,-544.06785329,8.883e-05,2]
[335379335,1724169038619,-420.0,9.372e-05,2]
[335379338,1724169038630,-24900.0,9.682e-05,2]
[335379341,1724169038640,-154.9761487,0.0001,2]
[335379344,1724169038650,-20797.12874944,0.0001,2]
[335379347,1724169038660,-413.70707529,0.0001,2]
[335379351,1724169038670,-817.60790766,0.0001,2]
[335379353,1724169038680,-587.0,0.00010309,2]
[335379355,1724169038691,-2143.02877073,0.00010544,2]
[335379357,1724169038700,-521.35824671,0.00010544,2]
[335379359,1724169038711,-823.0,0.0001134,2]
[335379361,1724169038722,-1152.0,0.00012474,2]
[335379363,1724169038732,-1500.0,0.00012516,2]
[335379365,1724169038742,-2128.24653365,0.00012551,2]
[335379367,1724169038753,-156.87056893,0.00012779,2]
[335379369,1724169038763,-156.87056893,0.00012782,2]
[335379371,1724169038773,-154.57491897,0.00012898,2]
[335379373,1724169038783,-493.36312925,0.0001295,2]
[335379375,1724169038792,-301.56944091,0.00012999,2]
[335379377,1724169038802,-862.53940611,0.00013,2]
[335379379,1724169038812,-482.31289816,0.00013025,2]
[335379381,1724169038822,-470.5496771,0.00013025,2]
[335379383,1724169038833,-154.57491897,0.00013051,2]
[335379385,1724169038849,-154.57491897,0.00013051,2]
[335379387,1724169038859,-3000.0,0.00013699,2]
[335379389,1724169038869,-928.685114,0.00013699,2]
[335379391,1724169038879,-595.0,0.00013722,2]
[335379393,1724169038889,-166.403169,0.00014247,2]
[335379395,1724169038899,-464.025991,0.00014247,2]
[335379396,1724169038909,-237.35486148,0.00015,2]
[335379398,1724169038919,-478.67831481,0.000157,2]
[335379399,1724169038929,-188.93065637,0.00016317,2]
[335379400,1724169038940,-500.0,0.00016317,2]
[335379401,1724169038952,-500.0,0.00016317,2]
[335379402,1724169038962,-500.0,0.00016317,2]
[335379403,1724169038971,-500.0,0.00016317,2]
[335379404,1724169038981,-500.0,0.00016317,2]
[335379405,1724169038991,-500.0,0.00016317,2]
[335379406,1724169039001,-500.0,0.00016317,2]
[335379407,1724169039011,-299.51190367,0.00016317,2]
[335379408,1724169039021,-500.0,0.00016317,2]
[335379409,1724169039031,-500.0,0.00016317,2]
[335379410,1724169039040,-51464.3195966,0.00016318,2]
[335379411,1724169039049,-2000.0,0.00016328,2]
[335379412,1724169039058,-295.80021868,0.00016427,2]
[335379413,1724169039070,-200.59230123,0.00016427,2]
[335379414,1724169039081,-500.0,0.00016427,2]
[335379415,1724169039095,-366.25195477,0.00016427,2]
[335379416,1724169039105,-500.0,0.00016427,2]
[335379417,1724169039114,-500.0,0.00016427,2]
[335379418,1724169039125,-500.0,0.00016427,2]
[335379419,1724169039135,-500.0,0.00016427,2]
[335379420,1724169039144,-500.0,0.00016427,2]
[335379421,1724169039155,-500.0,0.00016427,2]
[335379422,1724169039165,-450.0,0.00016427,2]
[335379423,1724169039175,-500.0,0.00016427,2]
[335379424,1724169039186,-500.0,0.00016427,2]
[335379425,1724169039195,-190.20051024,0.00016427,2]
[335379426,1724169039205,-500.0,0.00016427,2]
[335379427,1724169039215,-289.08057248,0.00016427,2]
[335379428,1724169039227,-500.0,0.00016427,2]
[335379429,1724169039237,-205857.278386,0.00016428,2]
[335379430,1724169039248,-500.0,0.00016438,2]
[335379431,1724169039258,-500.0,0.00016438,2]
[335379432,1724169039269,-500.49062634,0.00016438,2]
[335379433,1724169039280,-500.0,0.00016438,2]
[335379434,1724169039290,-511.85767266,0.00016438,2]
[335379435,1724169039300,-500.0,0.00016438,2]
[335379436,1724169039309,-514.24977842,0.00016438,2]
[335379437,1724169039319,-500.0,0.00016438,2]
[335379438,1724169039329,-500.0,0.00016438,2]
[335379439,1724169039339,-505.48695279,0.00016438,2]
[335379440,1724169039355,-503.17705376,0.00016438,2]
[335379441,1724169039366,-500.0,0.00016438,2]
[335379442,1724169039376,-500.0,0.00016438,2]
[335379443,1724169039386,-500.0,0.00016438,2]
[335379444,1724169039396,-500.0,0.00016438,2]
[335379445,1724169039406,-500.0,0.00016438,2]
[335379446,1724169039416,-500.0,0.00016438,2]
[335379447,1724169039426,-500.0,0.00016438,2]
[335379448,1724169039437,-500.0,0.00016438,2]
[335379449,1724169039446,-500.0,0.00016438,2]
[335379450,1724169039456,-500.0,0.00016438,2]
[335379451,1724169039465,-514.09,0.00016438,2]
[335379452,1724169039475,-500.0,0.00016438,2]
[335379453,1724169039485,-500.0,0.00016438,2]
[335379454,1724169039494,-412.72989913,0.00016438,2]
[335379455,1724169039504,-500.0,0.00016438,2]
[335379456,1724169039514,-500.0,0.00016438,2]
[335379457,1724169039523,-500.0,0.00016438,2]
[335379458,1724169039533,-500.0,0.00016438,2]
[335379459,1724169039543,-588.09268531,0.00016438,2]
[335379460,1724169039553,-507.17362541,0.00016438,2]
[335379461,1724169039562,-500.0,0.00016438,2]
[335379462,1724169039572,-500.0,0.00016438,2]
[335379463,1724169039581,-500.0,0.00016438,2]
[335379464,1724169039591,-502.80649111,0.00016438,2]
[335379465,1724169039612,-500.0,0.00016438,2]
[335379466,1724169039734,-505.17119022,0.00016438,2]
[335379467,1724169039745,-500.0,0.00016438,2]
[335379468,1724169039755,-500.0,0.00016438,2]
[335379469,1724169039765,-500.0,0.00016438,2]
[335379470,1724169039775,-516.95374631,0.00016438,2]
[335379471,1724169039785,-500.0,0.00016438,2]
[335379472,1724169039794,-500.0,0.00016438,2]
[335379473,1724169039804,-500.0,0.00016438,2]
[335379474,1724169039814,-195.62524131,0.00016438,2]
[335379475,1724169039824,-500.0,0.00016438,2]
[335379476,1724169039834,-500.0,0.00016438,2]
[335379477,1724169039848,-500.0,0.00016438,2]
[335379478,1724169039857,-448.68916869,0.00016438,2]
[335379479,1724169039867,-500.0,0.00016438,2]
[335379480,1724169039876,-500.0,0.00016438,2]
[335379481,1724169039886,-500.95705276,0.00016438,2]
[335379482,1724169039896,-500.0,0.00016438,2]
[335379483,1724169039906,-500.0,0.00016438,2]